[Event "*** Titled Tuesday Blitz"]
[Site "Chess.com"]
[Date "2021.02.09"]
[Round "2"]
[White "Vugar_Manafov"]
[Black "DinaBelenkaya"]
[Result "1-0"]
[WhiteElo "2651"]
[BlackElo "2373"]
[TimeControl "180+1"]
[EndTime "10:19:54 PST"]
[Termination "Vugar_Manafov won by checkmate"]

1. Nf3 {[%clk 0:02:58.9]} 1... d5 {[%clk 0:02:59.1]} 2. g3 {[%clk 0:02:58.3]}
2... Bg4 {[%clk 0:02:57.9]} 3. Bg2 {[%clk 0:02:56.2]} 3... c6 {[%clk 0:02:57.4]}
4. O-O {[%clk 0:02:55.3]} 4... Nd7 {[%clk 0:02:54.2]} 5. d3 {[%clk 0:02:55.4]}
5... e6 {[%clk 0:02:52]} 6. Nbd2 {[%clk 0:02:54.4]} 6... Bc5 {[%clk 0:02:52]} 7.
h3 {[%clk 0:02:54.3]} 7... Bh5 {[%clk 0:02:51.2]} 8. b3 {[%clk 0:02:53.8]} 8...
Ngf6 {[%clk 0:02:50]} 9. Bb2 {[%clk 0:02:53.5]} 9... O-O {[%clk 0:02:43.8]} 10.
e4 {[%clk 0:02:52.2]} 10... a5 {[%clk 0:02:38.5]} 11. a4 {[%clk 0:02:52]} 11...
Qc7 {[%clk 0:02:21.9]} 12. Kh1 {[%clk 0:02:33.8]} 12... Rfd8 {[%clk 0:02:17.2]}
13. Qe2 {[%clk 0:02:31]} 13... Ba7 {[%clk 0:01:34.6]} 14. g4 {[%clk 0:02:15.2]}
14... Bg6 {[%clk 0:01:34.2]} 15. Nh4 {[%clk 0:02:15.2]} 15... dxe4 {[%clk
0:01:12.7]} 16. dxe4 {[%clk 0:02:10]} 16... e5 {[%clk 0:01:04.7]} 17. Nc4 {[%clk
0:02:06]} 17... Ne8 {[%clk 0:00:53.1]} 18. Rad1 {[%clk 0:01:53.5]} 18... f6
{[%clk 0:00:52.2]} 19. Ba3 {[%clk 0:01:38.4]} 19... Nc5 {[%clk 0:00:47.8]} 20.
Nf5 {[%clk 0:01:17.8]} 20... Bxf5 {[%clk 0:00:47.3]} 21. exf5 {[%clk 0:01:12.6]}
21... Rac8 {[%clk 0:00:29.2]} 22. Ne3 {[%clk 0:00:52.8]} 22... Nd6 {[%clk
0:00:20.4]} 23. Nc4 {[%clk 0:00:43]} 23... Kh8 {[%clk 0:00:18.9]} 24. Nxd6
{[%clk 0:00:42.1]} 24... Rxd6 {[%clk 0:00:19.8]} 25. Rxd6 {[%clk 0:00:42.8]}
25... Qxd6 {[%clk 0:00:20.7]} 26. Rd1 {[%clk 0:00:43.4]} 26... Qc7 {[%clk
0:00:20.9]} 27. Qc4 {[%clk 0:00:43]} 27... Na6 {[%clk 0:00:10.3]} 28. Bd6 {[%clk
0:00:22.1]} 28... Qd7 {[%clk 0:00:07.3]} 29. Rd3 {[%clk 0:00:21.6]} 29... Qe8
{[%clk 0:00:06.5]} 30. f3 {[%clk 0:00:15.2]} 30... Rd8 {[%clk 0:00:06.8]} 31.
Ba3 {[%clk 0:00:15.2]} 31... Rd4 {[%clk 0:00:05.3]} 32. Qc3 {[%clk 0:00:14.1]}
32... Qd7 {[%clk 0:00:04.8]} 33. Bf1 {[%clk 0:00:14.2]} 33... Rxd3 {[%clk
0:00:04.5]} 34. Bxd3 {[%clk 0:00:13.9]} 34... Qd4 {[%clk 0:00:02.3]} 35. Qxd4
{[%clk 0:00:12.9]} 35... Bxd4 {[%clk 0:00:03.2]} 36. Bxa6 {[%clk 0:00:13.1]}
36... bxa6 {[%clk 0:00:02.9]} 37. Kg2 {[%clk 0:00:13.5]} 37... Bb6 {[%clk
0:00:03.3]} 38. Kf1 {[%clk 0:00:13.9]} 38... Kg8 {[%clk 0:00:03.9]} 39. Ke2
{[%clk 0:00:14.6]} 39... Kf7 {[%clk 0:00:04.8]} 40. Kd3 {[%clk 0:00:15.3]} 40...
Ke8 {[%clk 0:00:05]} 41. Kc4 {[%clk 0:00:15.9]} 41... Kd7 {[%clk 0:00:05.3]} 42.
Bc5 {[%clk 0:00:15.1]} 42... Bc7 {[%clk 0:00:05.6]} 43. Be3 {[%clk 0:00:14.3]}
43... Bd8 {[%clk 0:00:04.2]} 44. Kc5 {[%clk 0:00:14.2]} 44... g6 {[%clk
0:00:04.4]} 45. h4 {[%clk 0:00:09.9]} 45... gxf5 {[%clk 0:00:04.5]} 46. gxf5
{[%clk 0:00:10.8]} 46... h5 {[%clk 0:00:04.8]} 47. Bd2 {[%clk 0:00:10.7]} 47...
Bc7 {[%clk 0:00:04.6]} 48. Kc4 {[%clk 0:00:11]} 48... Kd6 {[%clk 0:00:04.1]} 49.
Be3 {[%clk 0:00:11.4]} 49... Kd7 {[%clk 0:00:04.5]} 50. Bc5 {[%clk 0:00:11.8]}
50... Bd8 {[%clk 0:00:04.6]} 51. Bf8 {[%clk 0:00:12.4]} 51... Kc7 {[%clk
0:00:03.7]} 52. Kc5 {[%clk 0:00:12.4]} 52... Kd7 {[%clk 0:00:04.3]} 53. Bd6
{[%clk 0:00:12.8]} 53... Bc7 {[%clk 0:00:03.1]} 54. Bxc7 {[%clk 0:00:12.9]}
54... Kxc7 {[%clk 0:00:04]} 55. c3 {[%clk 0:00:13.5]} 55... Kd7 {[%clk
0:00:01.2]} 56. Kb6 {[%clk 0:00:13.9]} 56... Kd6 {[%clk 0:00:01.8]} 57. Kxa6
{[%clk 0:00:13.9]} 57... e4 {[%clk 0:00:02.5]} 58. fxe4 {[%clk 0:00:14]} 58...
Ke5 {[%clk 0:00:03.4]} 59. Kxa5 {[%clk 0:00:14.4]} 59... Kxe4 {[%clk 0:00:04.3]}
60. b4 {[%clk 0:00:15.1]} 60... Kxf5 {[%clk 0:00:05.2]} 61. b5 {[%clk
0:00:15.9]} 61... Ke6 {[%clk 0:00:05.7]} 62. b6 {[%clk 0:00:16.1]} 62... f5
{[%clk 0:00:05.6]} 63. b7 {[%clk 0:00:16.4]} 63... f4 {[%clk 0:00:06.4]} 64.
b8=Q {[%clk 0:00:17.3]} 64... f3 {[%clk 0:00:06.9]} 65. Qf4 {[%clk 0:00:17.8]}
65... Kd5 {[%clk 0:00:05.6]} 66. Qxf3+ {[%clk 0:00:17.6]} 66... Kc4 {[%clk
0:00:06.5]} 67. Qxc6+ {[%clk 0:00:16.3]} 67... Kb3 {[%clk 0:00:07.4]} 68. c4
{[%clk 0:00:11.5]} 68... Ka2 {[%clk 0:00:08.3]} 69. c5 {[%clk 0:00:11.2]} 69...
Ka3 {[%clk 0:00:09.2]} 70. Qb5 {[%clk 0:00:11.5]} 70... Ka2 {[%clk 0:00:10.1]}
71. c6 {[%clk 0:00:11.1]} 71... Ka1 {[%clk 0:00:10.8]} 72. c7 {[%clk 0:00:10.5]}
72... Ka2 {[%clk 0:00:11.7]} 73. c8=Q {[%clk 0:00:10.7]} 73... Ka3 {[%clk
0:00:12.6]} 74. Qc1+ {[%clk 0:00:10.8]} 74... Ka2 {[%clk 0:00:13.5]} 75. Qbb2#
{[%clk 0:00:11.1]} 1-0

[Event "*** Titled Tuesday Blitz"]
[Site "Chess.com"]
[Date "2021.02.09"]
[Round "2"]
[White "Siemba"]
[Black "dropstoneDP"]
[Result "1-0"]
[WhiteElo "2496"]
[BlackElo "2966"]
[TimeControl "180+1"]
[EndTime "10:20:00 PST"]
[Termination "Siemba won by resignation"]

1. e4 {[%clk 0:02:13.6]} 1... c5 {[%clk 0:02:58]} 2. Nf3 {[%clk 0:02:14]} 2...
d6 {[%clk 0:02:57.4]} 3. d4 {[%clk 0:02:14.4]} 3... cxd4 {[%clk 0:02:58.3]} 4.
Nxd4 {[%clk 0:02:15.3]} 4... Nf6 {[%clk 0:02:58.2]} 5. Nc3 {[%clk 0:02:16]} 5...
a6 {[%clk 0:02:58.5]} 6. Bg5 {[%clk 0:02:16.6]} 6... e6 {[%clk 0:02:57.9]} 7. f4
{[%clk 0:02:17.3]} 7... Be7 {[%clk 0:02:54.2]} 8. Qf3 {[%clk 0:02:17.2]} 8...
Qc7 {[%clk 0:02:51.4]} 9. O-O-O {[%clk 0:02:17.6]} 9... b5 {[%clk 0:02:49.2]}
10. Bxf6 {[%clk 0:01:55.2]} 10... gxf6 {[%clk 0:02:30.1]} 11. a3 {[%clk
0:01:55.2]} 11... Bb7 {[%clk 0:02:29.9]} 12. f5 {[%clk 0:01:54.4]} 12... e5
{[%clk 0:02:24.1]} 13. Nb3 {[%clk 0:01:52.7]} 13... Nd7 {[%clk 0:02:23.2]} 14.
Nd5 {[%clk 0:01:51.8]} 14... Bxd5 {[%clk 0:02:22.1]} 15. Rxd5 {[%clk 0:01:52.7]}
15... Nb6 {[%clk 0:02:22.6]} 16. Rd1 {[%clk 0:01:50.2]} 16... Rg8 {[%clk
0:02:18.6]} 17. Bd3 {[%clk 0:01:49.5]} 17... Kf8 {[%clk 0:02:03]} 18. Kb1 {[%clk
0:01:47.3]} 18... Qc6 {[%clk 0:01:38.5]} 19. Nd2 {[%clk 0:01:45.7]} 19... a5
{[%clk 0:01:36.1]} 20. Qe2 {[%clk 0:01:38.8]} 20... b4 {[%clk 0:01:36.4]} 21.
Bb5 {[%clk 0:01:33.2]} 21... Qc7 {[%clk 0:01:35.3]} 22. a4 {[%clk 0:01:32.6]}
22... Rd8 {[%clk 0:00:39.1]} 23. Nc4 {[%clk 0:01:27.4]} 23... Nxc4 {[%clk
0:00:37.4]} 24. Bxc4 {[%clk 0:01:26.6]} 24... Qc6 {[%clk 0:00:28.6]} 25. Bb3
{[%clk 0:01:15.6]} 25... Rd7 {[%clk 0:00:22.9]} 26. Rd3 {[%clk 0:01:13]} 26...
Bd8 {[%clk 0:00:22.1]} 27. Rhd1 {[%clk 0:00:55.1]} 27... Bb6 {[%clk 0:00:21.8]}
28. Qd2 {[%clk 0:00:55.8]} 28... Ke7 {[%clk 0:00:07]} 29. Qh6 {[%clk 0:00:20.7]}
29... Rf8 {[%clk 0:00:06.1]} 30. Qxh7 {[%clk 0:00:12.2]} 30... Qxe4 {[%clk
0:00:05.2]} 31. Qg7 {[%clk 0:00:12]} 31... Qxf5 {[%clk 0:00:05]} 32. Rxd6 {[%clk
0:00:11.7]} 32... Rxd6 {[%clk 0:00:04.3]} 33. Rxd6 {[%clk 0:00:12.6]} 33... Kxd6
{[%clk 0:00:02.6]} 34. Qxf8+ {[%clk 0:00:12.9]} 34... Kc7 {[%clk 0:00:03.2]} 35.
Qxf7+ {[%clk 0:00:12.3]} 35... Kd8 {[%clk 0:00:01.8]} 36. Qf8+ {[%clk
0:00:10.3]} 36... Kc7 {[%clk 0:00:01.8]} 37. Qe7+ {[%clk 0:00:09.4]} 37... Qd7
{[%clk 0:00:02.4]} 38. Qxf6 {[%clk 0:00:08.1]} 38... Bd4 {[%clk 0:00:02.9]} 39.
Qa6 {[%clk 0:00:06.9]} 39... Bb6 {[%clk 0:00:03.4]} 40. Qc4+ {[%clk 0:00:07]}
40... Kb8 {[%clk 0:00:04]} 41. Qe4 {[%clk 0:00:07.2]} 41... Qd6 {[%clk
0:00:02.4]} 42. h4 {[%clk 0:00:07.1]} 42... Bd4 {[%clk 0:00:03]} 43. h5 {[%clk
0:00:07.1]} 43... Qf6 {[%clk 0:00:03.3]} 44. Qe2 {[%clk 0:00:04.4]} 44... Qf4
{[%clk 0:00:02.6]} 45. g4 {[%clk 0:00:04.2]} 45... Kc7 {[%clk 0:00:02.8]} 46.
Qc4+ {[%clk 0:00:04.2]} 46... Kd6 {[%clk 0:00:02.8]} 47. Qe6+ {[%clk 0:00:04.3]}
47... Kc7 {[%clk 0:00:02.9]} 48. Qe7+ {[%clk 0:00:04.8]} 48... Kc6 {[%clk
0:00:02.7]} 49. Qe6+ {[%clk 0:00:05.5]} 49... Kc7 {[%clk 0:00:03.3]} 50. Qf7+
{[%clk 0:00:05.8]} 50... Kd6 {[%clk 0:00:03]} 51. Qxf4 {[%clk 0:00:03.3]} 51...
exf4 {[%clk 0:00:03.9]} 52. g5 {[%clk 0:00:04]} 52... Kc5 {[%clk 0:00:03.6]} 53.
Kc1 {[%clk 0:00:02.9]} 53... f3 {[%clk 0:00:03.4]} 54. Kd2 {[%clk 0:00:03.2]}
54... Bxb2 {[%clk 0:00:03.4]} 55. h6 {[%clk 0:00:03.7]} 55... Bc1+ {[%clk
0:00:03.9]} 56. Ke1 {[%clk 0:00:03.1]} 56... Bxg5 {[%clk 0:00:04.1]} 57. h7
{[%clk 0:00:04]} 57... Bf6 {[%clk 0:00:04.6]} 58. Kf2 {[%clk 0:00:04.9]} 58...
Kd4 {[%clk 0:00:05]} 59. Kxf3 {[%clk 0:00:05.8]} 59... Ke5 {[%clk 0:00:05.4]}
60. Kg4 {[%clk 0:00:06.2]} 60... Ke4 {[%clk 0:00:04.1]} 61. Be6 {[%clk
0:00:04.8]} 61... Ke5 {[%clk 0:00:04.3]} 62. Bc8 {[%clk 0:00:05.4]} 62... Ke4
{[%clk 0:00:03.8]} 63. Kh5 {[%clk 0:00:05.4]} 63... Kd4 {[%clk 0:00:03.2]} 64.
Be6 {[%clk 0:00:05]} 64... Kc3 {[%clk 0:00:03.1]} 65. Bb3 {[%clk 0:00:05.4]}
65... Kd4 {[%clk 0:00:03.3]} 66. Kg6 {[%clk 0:00:06.1]} 66... Ke5 {[%clk
0:00:04]} 67. Kf7 {[%clk 0:00:06.9]} 67... Kf5 {[%clk 0:00:01.4]} 68. Kg8 {[%clk
0:00:06.8]} 68... Kg6 {[%clk 0:00:02]} 69. h8=Q {[%clk 0:00:07.4]} 69... Bxh8
{[%clk 0:00:02.6]} 70. Kxh8 {[%clk 0:00:08.3]} 70... Kf6 {[%clk 0:00:03.5]} 71.
Kg8 {[%clk 0:00:09.1]} 71... Ke7 {[%clk 0:00:04]} 72. Kg7 {[%clk 0:00:10]} 72...
Kd6 {[%clk 0:00:04.7]} 73. Kf6 {[%clk 0:00:10.9]} 73... Kc6 {[%clk 0:00:05]} 74.
Ke5 {[%clk 0:00:11.8]} 74... Kc5 {[%clk 0:00:05.5]} 75. Ke4 {[%clk 0:00:12.6]}
75... Kc6 {[%clk 0:00:05.7]} 76. Kd4 {[%clk 0:00:13.5]} 76... Kd6 {[%clk
0:00:06.3]} 77. Kc4 {[%clk 0:00:14.1]} 77... Kc6 {[%clk 0:00:07]} 78. Ba2 {[%clk
0:00:14.9]} 1-0

[Event "*** Titled Tuesday Blitz"]
[Site "Chess.com"]
[Date "2021.02.09"]
[Round "2"]
[White "sokidze"]
[Black "floplover"]
[Result "1-0"]
[WhiteElo "2508"]
[BlackElo "2284"]
[TimeControl "180+1"]
[EndTime "10:20:00 PST"]
[Termination "sokidze won by resignation"]

1. d4 {[%clk 0:03:00.9]} 1... d5 {[%clk 0:02:59.8]} 2. Nf3 {[%clk 0:03:01]} 2...
e6 {[%clk 0:03:00.3]} 3. g3 {[%clk 0:03:01.3]} 3... Nf6 {[%clk 0:02:59.9]} 4.
Bg2 {[%clk 0:03:01.9]} 4... Be7 {[%clk 0:03:00.5]} 5. c4 {[%clk 0:03:02.3]} 5...
O-O {[%clk 0:03:00.8]} 6. O-O {[%clk 0:03:02.9]} 6... dxc4 {[%clk 0:03:01.3]} 7.
Qa4 {[%clk 0:03:03.5]} 7... a6 {[%clk 0:02:57.9]} 8. Qxc4 {[%clk 0:03:03.6]}
8... b5 {[%clk 0:02:58.5]} 9. Qc2 {[%clk 0:03:04.2]} 9... Bb7 {[%clk 0:02:59.1]}
10. Bd2 {[%clk 0:03:04.8]} 10... Be4 {[%clk 0:02:58.7]} 11. Qc1 {[%clk
0:03:04.7]} 11... c6 {[%clk 0:02:51.5]} 12. a4 {[%clk 0:02:59.9]} 12... Nbd7
{[%clk 0:02:34.6]} 13. Nc3 {[%clk 0:02:53]} 13... Bd5 {[%clk 0:02:12.4]} 14.
Nxd5 {[%clk 0:01:59.3]} 14... cxd5 {[%clk 0:02:03.8]} 15. Qc6 {[%clk 0:01:59]}
15... b4 {[%clk 0:01:46.3]} 16. a5 {[%clk 0:01:50]} 16... Qb8 {[%clk 0:01:27.9]}
17. Bf4 {[%clk 0:01:13.4]} 17... Rc8 {[%clk 0:01:27.1]} 18. Qa4 {[%clk 0:00:57]}
18... Qa7 {[%clk 0:01:16.8]} 19. Rfc1 {[%clk 0:00:53.7]} 19... Ne4 {[%clk
0:01:10.2]} 20. Rc6 {[%clk 0:00:41.1]} 20... g5 {[%clk 0:00:49.7]} 21. Be3
{[%clk 0:00:32.6]} 21... Qb7 {[%clk 0:00:39.1]} 22. Rac1 {[%clk 0:00:30.1]}
22... h6 {[%clk 0:00:28.2]} 23. Ne5 {[%clk 0:00:22.5]} 23... Ndf6 {[%clk
0:00:17]} 24. Nd3 {[%clk 0:00:17.3]} 24... Kg7 {[%clk 0:00:14.1]} 25. Rxc8
{[%clk 0:00:05]} 25... Rxc8 {[%clk 0:00:13.8]} 26. Nc5 {[%clk 0:00:05.3]} 26...
Qc6 {[%clk 0:00:11]} 27. Qxb4 {[%clk 0:00:04.5]} 27... Nxc5 {[%clk 0:00:09.8]}
28. dxc5 {[%clk 0:00:05.4]} 28... Nd7 {[%clk 0:00:09.7]} 29. Qd4+ {[%clk
0:00:03.3]} 29... f6 {[%clk 0:00:10]} 30. b4 {[%clk 0:00:03.3]} 30... Qb5 {[%clk
0:00:10]} 31. h3 {[%clk 0:00:02.2]} 31... Ne5 {[%clk 0:00:10.4]} 32. Kh2 {[%clk
0:00:02.2]} 32... Nc6 {[%clk 0:00:10.7]} 33. Qd2 {[%clk 0:00:02.3]} 33... Qxb4
{[%clk 0:00:11.3]} 34. Qd3 {[%clk 0:00:02.5]} 34... Qb5 {[%clk 0:00:09.6]} 35.
Qxb5 {[%clk 0:00:02.3]} 35... axb5 {[%clk 0:00:09.6]} 36. a6 {[%clk 0:00:03.2]}
36... Ra8 {[%clk 0:00:09.9]} 37. Rb1 {[%clk 0:00:03.1]} 37... b4 {[%clk
0:00:09]} 38. Ra1 {[%clk 0:00:03.6]} 38... Kf7 {[%clk 0:00:07.1]} 39. h4 {[%clk
0:00:02.3]} 39... Ke8 {[%clk 0:00:07.2]} 40. hxg5 {[%clk 0:00:02.4]} 40... hxg5
{[%clk 0:00:08.1]} 41. Bf3 {[%clk 0:00:02.7]} 41... Kd7 {[%clk 0:00:08.4]} 42.
Bd2 {[%clk 0:00:02.7]} 42... f5 {[%clk 0:00:08.4]} 43. g4 {[%clk 0:00:01]} 43...
f4 {[%clk 0:00:07.7]} 44. e3 {[%clk 0:00:01.4]} 44... fxe3 {[%clk 0:00:06.1]}
45. Bxe3 {[%clk 0:00:02.3]} 45... d4 {[%clk 0:00:05.6]} 46. Bxc6+ {[%clk
0:00:02]} 46... Kxc6 {[%clk 0:00:05.7]} 47. Bxd4 {[%clk 0:00:02.9]} 47... Bxc5
{[%clk 0:00:06]} 48. Rc1 {[%clk 0:00:03]} 48... Rxa6 {[%clk 0:00:05.9]} 49.
Rxc5+ {[%clk 0:00:03.4]} 49... Kd6 {[%clk 0:00:06.7]} 50. Rb5 {[%clk 0:00:04]}
50... Ra2 {[%clk 0:00:06.6]} 51. Rxb4 {[%clk 0:00:03.7]} 51... e5 {[%clk
0:00:07]} 52. Be3 {[%clk 0:00:04.1]} 52... Kd5 {[%clk 0:00:07.2]} 53. Rb5+
{[%clk 0:00:04.4]} 53... Ke4 {[%clk 0:00:07.6]} 54. Kg3 {[%clk 0:00:04.9]} 54...
Ra4 {[%clk 0:00:07.2]} 55. Rb3 {[%clk 0:00:04.4]} 55... Kd5 {[%clk 0:00:06.9]}
56. Bxg5 {[%clk 0:00:04.5]} 56... Ke6 {[%clk 0:00:07.2]} 57. Be3 {[%clk
0:00:04.6]} 57... Rc4 {[%clk 0:00:07.3]} 58. Rb6+ {[%clk 0:00:05]} 58... Kf7
{[%clk 0:00:07.9]} 59. g5 {[%clk 0:00:05.5]} 59... Kg7 {[%clk 0:00:08.3]} 60. f4
{[%clk 0:00:05.8]} 60... Ra4 {[%clk 0:00:08.5]} 61. fxe5 {[%clk 0:00:05.5]}
61... Re4 {[%clk 0:00:08.8]} 62. Bf4 {[%clk 0:00:05.9]} 62... Ra4 {[%clk
0:00:09.2]} 63. Kg4 {[%clk 0:00:06.4]} 63... Ra7 {[%clk 0:00:07.3]} 64. Kf5
{[%clk 0:00:06.7]} 64... Rf7+ {[%clk 0:00:07.9]} 65. Rf6 {[%clk 0:00:07.3]}
65... Ra7 {[%clk 0:00:08.8]} 66. g6 {[%clk 0:00:07.3]} 66... Ra5 {[%clk
0:00:09.3]} 67. Rf7+ {[%clk 0:00:07.1]} 67... Kg8 {[%clk 0:00:09.5]} 68. Bh6
{[%clk 0:00:06.5]} 68... Ra8 {[%clk 0:00:10.1]} 69. Rf8+ {[%clk 0:00:06.6]}
69... Rxf8+ {[%clk 0:00:09.4]} 70. Bxf8 {[%clk 0:00:07.5]} 70... Kh8 {[%clk
0:00:08.8]} 71. Bh6 {[%clk 0:00:06.3]} 71... Kg8 {[%clk 0:00:09]} 72. e6 {[%clk
0:00:06.9]} 72... Kh8 {[%clk 0:00:08.1]} 73. e7 {[%clk 0:00:07.5]} 1-0

[Event "*** Titled Tuesday Blitz"]
[Site "Chess.com"]
[Date "2021.02.09"]
[Round "2"]
[White "DenishevM"]
[Black "BrandonJacobson"]
[Result "1-0"]
[WhiteElo "2597"]
[BlackElo "2999"]
[TimeControl "180+1"]
[EndTime "10:20:03 PST"]
[Termination "DenishevM won by checkmate"]

1. d4 {[%clk 0:03:00.9]} 1... Nf6 {[%clk 0:02:59.7]} 2. Nf3 {[%clk 0:03:00.5]}
2... d5 {[%clk 0:03:00.1]} 3. c4 {[%clk 0:03:00.9]} 3... e6 {[%clk 0:03:00.1]}
4. e3 {[%clk 0:03:00.1]} 4... b6 {[%clk 0:03:00]} 5. b3 {[%clk 0:03:00.2]} 5...
Bb7 {[%clk 0:03:00.6]} 6. Bb2 {[%clk 0:03:00.7]} 6... Nbd7 {[%clk 0:03:01.2]} 7.
Be2 {[%clk 0:02:59.8]} 7... Bd6 {[%clk 0:03:01.4]} 8. O-O {[%clk 0:03:00.3]}
8... O-O {[%clk 0:03:02.1]} 9. Nc3 {[%clk 0:03:00.6]} 9... a6 {[%clk 0:03:02.6]}
10. Qc2 {[%clk 0:02:59.2]} 10... Qe7 {[%clk 0:03:02.9]} 11. Rfd1 {[%clk
0:02:59]} 11... dxc4 {[%clk 0:02:56.3]} 12. bxc4 {[%clk 0:02:57.3]} 12... c5
{[%clk 0:02:56.5]} 13. Rac1 {[%clk 0:02:46]} 13... cxd4 {[%clk 0:02:54.3]} 14.
exd4 {[%clk 0:02:46.3]} 14... Rac8 {[%clk 0:02:52.6]} 15. Qb3 {[%clk 0:02:39.8]}
15... Rc7 {[%clk 0:02:18.1]} 16. Na4 {[%clk 0:02:21.8]} 16... Rb8 {[%clk
0:02:04.1]} 17. Qd3 {[%clk 0:01:58.1]} 17... Be4 {[%clk 0:01:55.5]} 18. Qd2
{[%clk 0:01:52]} 18... Rbc8 {[%clk 0:01:35.3]} 19. Ne5 {[%clk 0:01:32.4]} 19...
Ba8 {[%clk 0:01:06.8]} 20. Qe3 {[%clk 0:01:25.1]} 20... Rb8 {[%clk 0:00:52.7]}
21. Nc3 {[%clk 0:00:58.1]} 21... Ba3 {[%clk 0:00:33.9]} 22. Bxa3 {[%clk
0:00:49.7]} 22... Qxa3 {[%clk 0:00:34.8]} 23. Nxd7 {[%clk 0:00:33.6]} 23... Nxd7
{[%clk 0:00:35.7]} 24. d5 {[%clk 0:00:31]} 24... exd5 {[%clk 0:00:31.8]} 25.
cxd5 {[%clk 0:00:31]} 25... Rbc8 {[%clk 0:00:30.1]} 26. Rd3 {[%clk 0:00:26.5]}
26... Qc5 {[%clk 0:00:15.6]} 27. Qd2 {[%clk 0:00:19.3]} 27... Qf8 {[%clk
0:00:15.5]} 28. d6 {[%clk 0:00:13.6]} 28... Rc5 {[%clk 0:00:15.1]} 29. Rd1
{[%clk 0:00:11.2]} 29... Rd8 {[%clk 0:00:14.1]} 30. Nd5 {[%clk 0:00:08.6]} 30...
Qxd6 {[%clk 0:00:09.3]} 31. Nf4 {[%clk 0:00:05]} 31... Qf6 {[%clk 0:00:03.7]}
32. Rxd7 {[%clk 0:00:04.9]} 32... Rxd7 {[%clk 0:00:04.3]} 33. Qxd7 {[%clk
0:00:05.6]} 33... g6 {[%clk 0:00:03.8]} 34. Qd8+ {[%clk 0:00:05.7]} 34... Kg7
{[%clk 0:00:04.1]} 35. Qxf6+ {[%clk 0:00:05.4]} 35... Kxf6 {[%clk 0:00:05]} 36.
Rd6+ {[%clk 0:00:05.2]} 36... Ke5 {[%clk 0:00:04.9]} 37. Rd8 {[%clk 0:00:03.4]}
37... Rc1+ {[%clk 0:00:05.3]} 38. Bf1 {[%clk 0:00:03.9]} 38... Be4 {[%clk
0:00:04.9]} 39. Nd3+ {[%clk 0:00:02.5]} 39... Bxd3 {[%clk 0:00:05.5]} 40. Rxd3
{[%clk 0:00:03.4]} 40... Rc2 {[%clk 0:00:06.2]} 41. Re3+ {[%clk 0:00:03.5]}
41... Kf6 {[%clk 0:00:06.2]} 42. a3 {[%clk 0:00:02.6]} 42... b5 {[%clk
0:00:05.3]} 43. Rf3+ {[%clk 0:00:01.9]} 43... Ke7 {[%clk 0:00:05.7]} 44. h4
{[%clk 0:00:02.7]} 44... f5 {[%clk 0:00:04.8]} 45. Re3+ {[%clk 0:00:03.1]} 45...
Kf6 {[%clk 0:00:05.1]} 46. g3 {[%clk 0:00:03.7]} 46... Ra2 {[%clk 0:00:04.6]}
47. Rd3 {[%clk 0:00:03.3]} 47... Ke7 {[%clk 0:00:04.6]} 48. Rc3 {[%clk
0:00:03.2]} 48... Kd6 {[%clk 0:00:04.4]} 49. h5 {[%clk 0:00:03.2]} 49... Rb2
{[%clk 0:00:02.4]} 50. Rd3+ {[%clk 0:00:02.5]} 50... Ke5 {[%clk 0:00:02.7]} 51.
h6 {[%clk 0:00:03.4]} 51... Kf6 {[%clk 0:00:03]} 52. Rd7 {[%clk 0:00:03.2]}
52... g5 {[%clk 0:00:03.6]} 53. Rd6+ {[%clk 0:00:02.6]} 53... Ke5 {[%clk
0:00:03.8]} 54. Rxa6 {[%clk 0:00:03.5]} 54... b4 {[%clk 0:00:03.6]} 55. a4
{[%clk 0:00:01.9]} 55... b3 {[%clk 0:00:04]} 56. Ra5+ {[%clk 0:00:02.2]} 56...
Kd4 {[%clk 0:00:04.1]} 57. Rb5 {[%clk 0:00:03.1]} 57... Ra2 {[%clk 0:00:03.3]}
58. Rxb3 {[%clk 0:00:02.9]} 58... Rxa4 {[%clk 0:00:03.9]} 59. Rb7 {[%clk
0:00:03.6]} 59... Ke5 {[%clk 0:00:03.1]} 60. Rxh7 {[%clk 0:00:04]} 60... Kf6
{[%clk 0:00:04]} 61. Rc7 {[%clk 0:00:03.2]} 61... Ra8 {[%clk 0:00:03.5]} 62.
Rc6+ {[%clk 0:00:03.6]} 62... Kf7 {[%clk 0:00:03.3]} 63. Bd3 {[%clk 0:00:04.4]}
63... f4 {[%clk 0:00:03.1]} 64. Kg2 {[%clk 0:00:04.2]} 64... fxg3 {[%clk
0:00:02.5]} 65. fxg3 {[%clk 0:00:04.9]} 65... Rd8 {[%clk 0:00:03.3]} 66. Bc4+
{[%clk 0:00:04.6]} 66... Kf8 {[%clk 0:00:03.1]} 67. Kh3 {[%clk 0:00:04.9]} 67...
Rd4 {[%clk 0:00:03]} 68. Rc7 {[%clk 0:00:04.3]} 68... Rd1 {[%clk 0:00:02.2]} 69.
h7 {[%clk 0:00:04.1]} 69... Rh1+ {[%clk 0:00:02.7]} 70. Kg4 {[%clk 0:00:04.8]}
70... Rh6 {[%clk 0:00:02.7]} 71. h8=Q+ {[%clk 0:00:04.7]} 71... Rxh8 {[%clk
0:00:02.9]} 72. Rc8+ {[%clk 0:00:05.4]} 72... Kg7 {[%clk 0:00:02.4]} 73. Rxh8
{[%clk 0:00:06.3]} 73... Kxh8 {[%clk 0:00:03]} 74. Kxg5 {[%clk 0:00:07]} 74...
Kg7 {[%clk 0:00:03.6]} 75. Be2 {[%clk 0:00:06.7]} 75... Kh8 {[%clk 0:00:04.5]}
76. g4 {[%clk 0:00:07.5]} 76... Kg7 {[%clk 0:00:05.4]} 77. Kh5 {[%clk
0:00:08.1]} 77... Kh8 {[%clk 0:00:06.3]} 78. Kg6 {[%clk 0:00:09]} 78... Kg8
{[%clk 0:00:06.8]} 79. g5 {[%clk 0:00:09.9]} 79... Kh8 {[%clk 0:00:07.7]} 80.
Kh6 {[%clk 0:00:10.8]} 80... Kg8 {[%clk 0:00:08.6]} 81. g6 {[%clk 0:00:11.4]}
81... Kh8 {[%clk 0:00:09.5]} 82. g7+ {[%clk 0:00:12]} 82... Kg8 {[%clk
0:00:10.4]} 83. Bc4# {[%clk 0:00:12.7]} 1-0